Cogmind - Beta 17.1 *** ADVENTURER MODE // 2026.09.12 @ 17:24:52 Player: catshark Result: Self-destructed Performance ------------- Evolutions (1) 500 Regions Visited (3) 600 Robots Destroyed (25) 125 Value Destroyed (594) 594 Prototype IDs (1) 20 Alien Tech Used (0) 0 Bonus (0) 0 TOTAL SCORE: 1839 Bonus ------- None Cogmind --------- Core Integrity 345/400 Matter 290/300 Energy 424/430 System Corruption 0% Temperature Cool (70) Movement Rolling (135) Ox3 Location -9/Materials Parts ------- > --- POWER (2) -------- Ion Engine Heavy Ion Engine > --- PROPULSION (2) --- Wheel Compact Wheel > --- UTILITY (3) ------ Huge Storage Unit Visual Processing Unit ECM Suite > --- WEAPON (2) ------- EM Shotgun Particle Gun > --- INVENTORY (25) --- Heat Sink Terrain Scan Processor Seismic Detector ECM Suite Particle Gun Shotgun Hammer Peak State ------------ > --- POWER ------------ Ion Engine Heavy Ion Engine > --- PROPULSION ------- Wheel Compact Wheel > --- UTILITY ---------- Huge Storage Unit Visual Processing Unit ECM Suite > --- WEAPON ----------- EM Shotgun Particle Gun > --- INVENTORY -------- Heat Sink Terrain Scan Processor Seismic Detector ECM Suite Particle Gun Shotgun Hammer [Rating: 15] Favorites ----------- Power Ion Engine Engine Ion Engine Propulsion Compact Wheel Wheel Compact Wheel Utility Huge Storage Unit Device Heat Sink Storage Huge Storage Unit Processor Visual Processing Unit Weapon Beam Cannon Energy Gun EM Shotgun Energy Cannon Beam Cannon Ballistic Gun Shotgun Build | -11 -10 -10 -9 ------- Run | Yrd Mat Min Mat Slots Evolved 2 | . . . 2 Power 1 | . . . 1 Propulsion . | . . . . Utility 1 | . . . 1 Weapon . | . . . . Parts Attached 24 | 6 10 . 8 Power 5 | 1 1 . 3 Engine 5 | 1 1 . 3 Core . | . . . . Reactor . | . . . . Propulsion 5 | 2 2 . 1 Treads . | . . . . Leg . | . . . . Wheel 5 | 2 2 . 1 Hover . | . . . . Flight . | . . . . Utility 7 | 1 4 . 2 Device 4 | . 3 . 1 Storage 2 | 1 1 . . Processor 1 | . . . 1 Hackware . | . . . . Protection . | . . . . Artifact . | . . . . Weapon 7 | 2 3 . 2 Energy Gun 4 | 1 1 . 2 Energy Cannon 1 | . 1 . . Ballistic Gun 2 | 1 1 . . Ballistic Cannon . | . . . . Launcher . | . . . . Special Weapon . | . . . . Impact Weapon . | . . . . Slashing Weapon . | . . . . Piercing Weapon . | . . . . Special Melee Weapon . | . . . . Unidentified Prototypes 1 | . . . 1 Parts Lost 2 | . . 1 1 Power . | . . . . Propulsion 1 | . . 1 . Utility . | . . . . Weapon 1 | . . . 1 Highest Loss Streak 1 | . . 1 1 To Critical Strikes . | . . . . Average Backups 6 | . 6 7 7 Power . | . . . . Propulsion . | . . . . Utility 3 | . 4 4 3 Weapon 2 | . 2 3 3 Tool/Special . | . . . . Unused Backups 5 | . 2 . 3 Power . | . . . . Propulsion . | . . . . Utility 3 | . 2 . 1 Weapon 2 | . . . 2 Tool/Special . | . . . . Average Slot Usage (%) 92 | . 99 91 84 Engine 15 | . 14 14 17 Wheel 20 | . 28 20 11 Device 14 | . 13 14 15 Storage 12 | . 14 14 11 Processor 2 | . . . 6 Energy Gun 8 | . 10 . 9 Energy Cannon 8 | . 3 14 11 Ballistic Gun 9 | . 14 14 1 Peak Build Rating 15 | 6 10 9 15 Average Rating 9 | 4 9 8 10 On Entrance 5 | . 6 9 8 Avg Prop Armor Cover (%) . | . . . . Naked Turns . | . . . . Heaviest Build 101 | 12 93 92 101 Greatest Support 32 | 20 32 32 26 Greatest Overweight (x) 6 | . 4 5 6 Average Overweight (x) 3 | . 2 3 5 Largest Inventory Capacity 25 | 8 25 25 25 Average Capacity 23 | 6 22 25 25 Most Carried 10 | 4 10 7 9 Average Carried 6 | . 6 7 7 Final Capacity 25 | 8 25 25 25 Final Carried 7 | . 7 7 7 Class Distribution -------------------- 100% | Mutant Dominant Class ---------------- Mutant | -10/Materials Mutant | -10/Mines Mutant | -9/Materials Resources | -11 -10 -10 -9 ----------- Run | Yrd Mat Min Mat Matter Collected 505 | 150 194 91 70 Remotely . | . . . . Salvage Created 711 | . 241 49 421 Parts 46 | . 13 5 28 Haulers Intercepted . | . . . . Recyclers Shooed . | . . . . Parts Field Recycled . | . . . . Retrieved Matter . | . . . . Parts Self-Destructed . | . . . . Prevented . | . . . . Parts Restored . | . . . . Kills | -11 -10 -10 -9 ------- Run | Yrd Mat Min Mat Combat Hostiles Destroyed 16 | . 7 3 6 Guns 8 | . 7 . 1 Cannons 8 | . . 3 5 Classes Destroyed 6 | . 3 . 3 Tunneler 1 | . . . 1 Operator 1 | . . . 1 Watcher 7 | . 2 . 5 Swarmer 5 | . 2 3 . Grunt 9 | . 5 . 4 Sentry 2 | . . . 2 Best Kill Streak 5 | . 5 3 5 Combat Bots Only 5 | . 5 3 2 Max Kills in Single Turn 2 | . 2 1 1 Gunslinging . | . . . . Exploded . | . . . . Melee . | . . . . Uniques/NPCs Destroyed . | . . . . Combat | -11 -10 -10 -9 -------- Run | Yrd Mat Min Mat Hostile Shots Fired 115 | . 67 8 40 Missed 32 | . 20 1 11 Hits 83 | . 47 7 29 Projectile 83 | . 47 7 29 Critical Strikes 3 | . 1 . 2 Damage Taken 710 | . 438 38 234 Core 163 | . 108 . 55 Absorbed by Shields . | . . . . Ignored by Resistances 224 | . 138 14 72 Core Remaining (%) 78 | 100 . 56 . Volleys Fired 53 | . 23 3 27 Largest 2 | . 2 2 2 Hottest 105 | . 88 83 105 Shots Fired 91 | . 40 6 45 Gun 59 | . 38 3 18 Cannon 32 | . 2 3 27 Launcher . | . . . . Special . | . . . . Kinetic 20 | . 17 3 . Thermal 53 | . 23 3 27 Explosive . | . . . . Electromagnetic 18 | . . . 18 Robot Hit Streak 14 | . 9 1 14 Robot Miss Streak 2 | . 2 1 2 Penetration Max . | . . . . Secondary Targets 1 | . 1 . . Max Gunslinging Chain 1 | . 1 . . Shots Hit Robots 63 | . 27 3 33 Core Hits 37 | . 14 3 20 Critical Kills . | . . . . Critical Parts Destroyed . | . . . . Critical Strikes . | . . . . Melee Attacks . | . . . . Impact . | . . . . Slashing . | . . . . Piercing . | . . . . Sneak Attacks . | . . . . Combat Hostiles . | . . . . Follow-up Attacks . | . . . . Damage Inflicted 1121 | . 400 61 660 Guns 697 | . 382 9 306 Cannons 384 | . 18 52 314 Explosions 40 | . . . 40 Melee . | . . . . Ramming . | . . . . Kinetic 209 | . 200 9 . Thermal 606 | . 200 52 354 Explosive . | . . . . Electromagnetic 306 | . . . 306 Impact . | . . . . Slashing . | . . . . Piercing . | . . . . Highest Corruption . | . . . . Average Corruption . | . . . . Corruption Purged . | . . . . Corruption Blocked . | . . . . Overload Shots . | . . . . Overflow Damage 7 | . . . 7 Projectiles . | . . . . Explosions 7 | . . . 7 Melee . | . . . . Knockbacks . | . . . . Impact . | . . . . Kinetic . | . . . . Secondary . | . . . . Self-Inflicted Damage . | . . . . Shots . | . . . . Rammed . | . . . . Targets Rammed . | . . . . Kicked . | . . . . Crushed . | . . . . Highest Temperature 358 | . 358 . 121 Average Temperature 75 | . 130 . 47 Received Heat Transfer 408 | . 300 . 108 Siege Activations . | . . . . Martial Activations . | . . . . Shielding Activations . | . . . . Robots Disrupted . | . . . . Combat Hostiles . | . . . . Robots Corrupted . | . . . . Combat Hostiles . | . . . . Parts Fried 2 | . . . 2 Impact Corruptions . | . . . . Robots Melted . | . . . . Combat Hostiles . | . . . . Parts Melted 2 | . 1 . 1 Heat Transferred 1308 | . 481 111 716 Parts Sabotaged . | . . . . Parts Stolen . | . . . . Parts Stripped . | . . . . Power Chain Reactions 1 | . . . 1 Alert | -11 -10 -10 -9 ------- Run | Yrd Mat Min Mat Maximum Alert Level . | . . . . Low Security (%) 100 | 100 100 100 100 Level 1 . | . . . . Level 2 . | . . . . Level 3 . | . . . . Level 4 . | . . . . Level 5 . | . . . . High Security . | . . . . Max Security . | . . . . Peak Influence 134 | . 134 60 45 Initial . | . . . . Average 26 | . 49 11 11 Influence Increases 459 | . 201 70 188 Destroy 0b10 Robot/C 320 | . 140 60 120 Destroy 0b10 Robot/NC 45 | . 10 . 35 Destroy Leader 74 | . 34 10 30 Successful Hack 17 | . 17 . . Destroy Structure 3 | . . . 3 Influence Decreases 440 | . 201 70 169 Time Decay 420 | . 201 60 159 Lost Part 20 | . . 10 10 Squads Dispatched 2 | . 1 . 1 Investigation 1 | . 1 . . Extermination . | . . . . Reinforcement 1 | . . . 1 Assault . | . . . . Garrison . | . . . . Intercept . | . . . . Searches Triggered . | . . . . Construction Impeded . | . . . . Haulers Reinforced . | . . . . Active Scanning Responses . | . . . . Cargo Convoy Interrupts . | . . . . Stealth | -11 -10 -10 -9 --------- Run | Yrd Mat Min Mat Distress Signals 4 | . 2 . 2 Communications Jammed . | . . . . Distress Signals . | . . . . Times Spotted 49 | . 23 3 23 Peak Tracking Total 8 | . 8 3 4 Tactical Retreats 3 | . 2 . 1 ECM-based Alert Blocks 7 | . 6 . 1 Traps | -11 -10 -10 -9 ------- Run | Yrd Mat Min Mat Traps Triggered 1 | . 1 . . Indirectly . | . . . . Trap Hack Attempts . | . . . . Triggered . | . . . . Disarmed 6 | . 6 . . Reprogrammed . | . . . . Reused . | . . . . Traps Extracted . | . . . . Installed . | . . . . Triggered . | . . . . Machines | -11 -10 -10 -9 ---------- Run | Yrd Mat Min Mat Machines Disabled . | . . . . Max in Single Turn . | . . . . Machines Repaired . | . . . . Machines Dismantled . | . . . . Machines Sabotaged . | . . . . Overloaded Fab Kills . | . . . . Hacking | -11 -10 -10 -9 --------- Run | Yrd Mat Min Mat Machines Accessed 6 | . 4 . 2 Terminals 6 | . 4 . 2 Fabricators . | . . . . Repair Stations . | . . . . Recycling Units . | . . . . Scanalyzers . | . . . . Garrison Access . | . . . . Total Hacks 14 | . 11 . 3 Successful 7 | . 5 . 2 Failed 7 | . 6 . 1 Catastrophic 1 | . 1 . . Database Lockouts . | . . . . Manual 9 | . 7 . 2 Terminals 14 | . 11 . 3 Fabricators . | . . . . Repair Stations . | . . . . Recycling Units . | . . . . Scanalyzers . | . . . . Garrison Access . | . . . . Terminal Hacks 3 | . 2 . 1 Disarm Traps 1 | . 1 . . Recall Investigation 1 | . . . 1 Registered Components 1 | . 1 . . Fabricator Hacks . | . . . . Repair Station Hacks . | . . . . Recycling Unit Hacks . | . . . . Scanalyzer . | . . . . Garrison Access Hacks . | . . . . Unauthorized Hacks 4 | . 3 . 1 Terminals 4 | . 3 . 1 Botnet 4 | . 3 . 1 Fabricators . | . . . . Repair Stations . | . . . . Recycling Units . | . . . . Scanalyzers . | . . . . Garrison Access . | . . . . Data Cores Recovered 1 | . . . 1 Used 1 | . . . 1 Hacking Detections 4 | . 3 . 1 Full Trace Events 1 | . 1 . . Feedback Events . | . . . . Feedback Blocked . | . . . . Robot Schematics Acquired . | . . . . Robots Built . | . . . . Authchips . | . . . . Time . | . . . . Total Robot Build Rating . | . . . . Part Schematics Acquired . | . . . . Parts Built . | . . . . Authchips . | . . . . Time . | . . . . Total Part Build Rating . | . . . . Part Studies Acquired . | . . . . Parts Repaired . | . . . . Time . | . . . . Parts Recycled . | . . . . Recycled Matter . | . . . . Retrieved Matter . | . . . . Retrieved Components . | . . . . Parts Scanalyzed . | . . . . Part Schematics Acquired . | . . . . Parts Damaged . | . . . . Bothacking | -11 -10 -10 -9 ------------ Run | Yrd Mat Min Mat Used RIF Installer . | . . . . Robots Hacked . | . . . . Non-combat . | . . . . Combat . | . . . . Robot Hacks Applied . | . . . . Relay Couplers Released . | . . . . Fabnet Peak Effective % . | . . . . Robots Rewired . | . . . . Allies Hacked . | . . . . Hacks Repelled . | . . . . Allies | -11 -10 -10 -9 -------- Run | Yrd Mat Min Mat Total Allies . | . . . . Largest Group . | . . . . Highest-Rated Group . | . . . . Highest-Rated Ally . | . . . . Total Orders . | . . . . Ally Attacks . | . . . . Total Damage . | . . . . Kills . | . . . . Allies Corrupted . | . . . . Allies Melted . | . . . . Intel | -11 -10 -10 -9 ------- Run | Yrd Mat Min Mat Active Infowar (turns) 733 | . 149 . 584 Optics 329 | . . . 329 Seismic 79 | . 79 . . ECM 654 | . 70 . 584 Robot Analysis Total . | . . . . Derelict Logs Recovered 2 | . . 2 . Drone Launches . | . . . . Drone Recoveries . | . . . . Exploration | -11 -10 -10 -9 ------------- Run | Yrd Mat Min Mat Turns Passed 1587 | 68 646 289 584 Spaces Moved 961 | 59 448 181 273 Core 1 | 1 . . . Treads . | . . . . Legs . | . . . . Wheels 960 | 58 448 181 273 Hover . | . . . . Flight . | . . . . Fastest Speed 50 | 50 80 130 135 Average Speed 141 | 79 122 153 179 Slowest Speed 190 | 80 140 175 190 Overloaded Moves . | . . . . Propulsion Burnouts . | . . . . Robots Hopped . | . . . . Potential Cave-ins . | . . . . Cave-ins Triggered . | . . . . Exploration Rate (%) 37 | 3 54 52 40 Regions Visited 3 Branch Regions 1 Pre-discovered Areas 1 | . . 1 . Known Exits Taken 1 | . . 1 . Unknown Exits Taken 2 | 1 1 . . Scrap Searched 1 | . . 1 . Spaces Dug . | . . . . Terrain Destroyed 2 | . . . 2 Melee . | . . . . Projectile . | . . . . AOE 2 | . . . 2 Terrain Rammed . | . . . . Walls Destroyed . | . . . . Machines Disabled . | . . . . Actions | -11 -10 -10 -9 --------- Run | Yrd Mat Min Mat Total 1092 | 79 506 186 321 Wait 17 | 9 2 3 3 Move 958 | 58 447 180 273 Hop . | . . . . Pick Up 29 | 6 16 . 7 Fast Attach . | . . . . Attach 11 | 6 1 . 4 Detach . | . . . . Swap 13 | . 9 . 4 Drop 11 | . 8 . 3 Fire 53 | . 23 3 27 Melee . | . . . . Ram . | . . . . Kick . | . . . . Crush . | . . . . Escape Stasis . | . . . . Rewire . | . . . . Trap . | . . . . Miscellaneous . | . . . . Route ------- -11/Scrapyard -10/Materials -10/Mines -9/Materials History --------- Turn | Location | Event 18 | -11/Scrapyard | Discovered new exit (range 16) 69 | -11/Scrapyard | Entered Materials 313 | -10/Materials | Build established: Mutant 689 | -10/Materials | Discovered new exit (range 16) 715 | -10/Materials | Entered Mines 858 | -10/Mines | Learned location of Recycling (-8) 918 | -10/Mines | Identified exit to Materials 1004 | -10/Mines | Entered Materials 1004 | -9/Materials | Evolved 2 slots: Power x1, Utility x1 1588 | -9/Materials | Self-destructed Last Messages --------------- 01542_ K-01 Serf collects debris. 01543_ Acquired 10 matter. 01544_ K-01 Serf collects debris. 01551_ W-16 Scout distress signal alerts nearby ally. 01553_ Chain reaction triggered in Lgt. Ion Engine. 01553_ Destroyed Hover Unit. 01553_ W-16 Scout destroyed. 01560_ U-05 Engineer lays Concrete. 01561_ G-34 Mercenary destroyed. 01562_ U-05 Engineer lays Concrete. 01573_ U-05 Engineer builds a Wall. 01575_ U-05 Engineer lays Concrete. 01577_ U-05 Engineer builds a Wall. 01578_ G-34 Mercenary destroyed. 01578_ K-01 Serf collects debris. 01587_ Beam Cannon destroyed. [Achievement: There's More Where That Came From] 01587_ K-01 Serf collects debris. Map ----- +----------------------------------------------------+ | ?????????????????????????????????????????????????? | | ?????????????????????????????????????????????????? | | ?????????????????????????????###########?????????? | | ?????????????????????????????# """ """ #?????????? | | ?????????????????????????????# """ """ #?????????? | | ?????????????????????????????# """ """ #??????? ?? | | ?????????????????????????????# #????? ??? | | ?????????????????????????????# #???"" ???? | | ?????????????????????????????# #???""????? | | ?????????????????????????????# #?? ????? | | ??????????????##############?# #??+#????# | | ??????????????# ##########+#### ##### | | ??????????????# ^ | | ??????????????+ !^ ^ | | ???????????????? """ *%= %"^ | | ????????????????# """"" #######*!T %^ ^ | | ????????????????# """"" # ## " | | ????????????????# """"" # T ## """ "" | | ????????????????# """ # ## """ "" | | ????????????????# ! # ## """ "" | | ????????????????# u% # ## | | ????????????????# # ## ! | | ????????????????#==! u# ## #####+####### | | ????????????????#==! # ## ## #?? | | ????????????????#==! k#? ## ## ! #?? | | ????????????????# // @%###+### ## """ #?? | | ???????? s / =[ ## """"" #?? | | ???????? ss [ / """"" #?? | | ???????? s k %!## """"" #?? | | ?????????# ##### ##### * ## """ #?? | | ???????????????#+????## ############ ### | | ??????????????????????# #??????????# # | | ??????????????????????# #??????????######+###* | | ??????????????????????+ #???############# ### | | ??????????????????????# # | | ??????????????????????# / | | ??????????????????????# # | | ??????????????????????###T##?##############+#### | | ????????????????????????##?????????????????????# | | ???????????????????????????????????????????????# | | ???????????????????????????????????????????????### | | ???????????????????????????????????????????????# | | ???????????????????????????????????????????????# " | | ???????????????????????????????????????????????# " | | ???????????????????????????????????????????????# " | | ???????????????????????????????????????????????# | | ???????????????????????????????????????????????# | | ???????????????????????????????????????????????# | | ???????????????????????????????????????????????# | | ???????????????????????????????????????????????# | +----------------------------------------------------+ Best States ------------- Heat Dissipation 38 Energy Generation 19 Energy Capacity 430 Matter Stores 300 Matter Capacity 300 Sight Range 18 Terrain Scan Density 10 ECM Strength 1 Resistance: KI 20 Resistance: TH 20 Resistance: EX 20 Resistance: EM 20 Resistance: I 20 Resistance: S 20 Resistance: P 20 Evasion (%) 44 Offensive Hacking 10 Item Schematics ----------------- None Robot Schematics ------------------ None Fabricated ------------ Nothing Repaired ---------- Nothing Studied --------- None Alien Tech Used ----------------- None Achievements -------------- Dynamic Key Quantum Hacking There's More Where That Came From Challenges ------------ None Game ------ Seed LayeredUtilityInverter Manual? 0 Play Time 00:13:37 Cumulative 2.3 hours Start 2026.09.10 @ 17:03:24 End 2026.09.12 @ 17:24:52 Sessions 3 Manual Loads 0 Difficulty Adventurer Special Mode None Game No. 11 Rogue 0 Adventurer 11 Explorer 0 Win Type - Total 0 Types 0/0/0/0/0/0/0/0/0/0 Lore% 2 Gallery% 7 Achievement% 6 Wizard Run 0 Options --------- Layout 1 ASCII 0 Keyboard 0 Movement Mouse Keybinds 0 Fullscreen 1 Font 32/SmallcapsGlow Map View 50x40 Zoom Use 0% Tactical HUD 1 Map Filters NONE Filters NONE Steam 1 RUN: 5e1d83eb-c2a9-4248-ad39-1be69c6ebeed